[Event "*** Titled Tuesday 3|2 Blitz"]
[Site "Chess.com"]
[Date "2016.05.03"]
[Round "7"]
[White "Fh2411"]
[Black "UltimateCrusher2"]
[Result "1/2-1/2"]
[WhiteElo "2266"]
[BlackElo "2098"]
[TimeControl "180+2"]
[EndTime "12:35:04 PDT"]
[Termination "Game drawn - insufficient material"]

1. d4 {[%clk 0:03:01.9]} 1... b6 {[%clk 0:03:01.9]} 2. Nf3 {[%clk 0:03:00.2]}
2... Nf6 {[%clk 0:02:58.2]} 3. g3 {[%clk 0:03:00.8]} 3... Bb7 {[%clk 0:02:58.8]}
4. Bg2 {[%clk 0:03:02.7]} 4... e6 {[%clk 0:02:59.7]} 5. O-O {[%clk 0:03:04.1]}
5... Be7 {[%clk 0:02:59.6]} 6. c4 {[%clk 0:03:05.6]} 6... O-O {[%clk 0:02:59.2]}
7. Nc3 {[%clk 0:03:06.7]} 7... Ne4 {[%clk 0:03:00.8]} 8. Qc2 {[%clk 0:03:06.3]}
8... Nxc3 {[%clk 0:03:01.2]} 9. Qxc3 {[%clk 0:03:08.2]} 9... c5 {[%clk
0:02:59.6]} 10. Be3 {[%clk 0:03:08.5]} 10... cxd4 {[%clk 0:02:58.9]} 11. Bxd4
{[%clk 0:03:07.8]} 11... Bf6 {[%clk 0:02:57.5]} 12. Bxf6 {[%clk 0:03:05.7]}
12... Qxf6 {[%clk 0:02:59.4]} 13. Qxf6 {[%clk 0:03:06.7]} 13... gxf6 {[%clk
0:03:01.3]} 14. Rfd1 {[%clk 0:03:06.8]} 14... Rd8 {[%clk 0:02:55.8]} 15. Rd6
{[%clk 0:03:08.1]} 15... Kf8 {[%clk 0:02:46.4]} 16. Rad1 {[%clk 0:03:07.6]}
16... Ke7 {[%clk 0:02:47.5]} 17. R6d4 {[%clk 0:03:04.4]} 17... Na6 {[%clk
0:02:44.8]} 18. a3 {[%clk 0:02:57.1]} 18... Nc5 {[%clk 0:02:45.1]} 19. b4 {[%clk
0:02:56.6]} 19... Na6 {[%clk 0:02:41.4]} 20. Rh4 {[%clk 0:02:51.6]} 20... Rh8
{[%clk 0:02:41.9]} 21. Bf1 {[%clk 0:02:39]} 21... Rac8 {[%clk 0:02:24.2]} 22.
Nd4 {[%clk 0:02:27.1]} 22... Nc7 {[%clk 0:02:25]} 23. Nb3 {[%clk 0:02:09.4]}
23... d5 {[%clk 0:02:13]} 24. c5 {[%clk 0:02:09.4]} 24... e5 {[%clk 0:02:08.5]}
25. Rc1 {[%clk 0:02:06.3]} 25... Ne6 {[%clk 0:02:06.6]} 26. Bh3 {[%clk
0:02:02.2]} 26... d4 {[%clk 0:02:04]} 27. Bf5 {[%clk 0:01:53.2]} 27... Bd5
{[%clk 0:02:04.1]} 28. Bxe6 {[%clk 0:01:42.4]} 28... Bxe6 {[%clk 0:02:00.8]} 29.
Nd2 {[%clk 0:01:42.1]} 29... Bd5 {[%clk 0:01:32.6]} 30. e3 {[%clk 0:01:26.2]}
30... dxe3 {[%clk 0:01:32.1]} 31. fxe3 {[%clk 0:01:28.1]} 31... Rc7 {[%clk
0:01:32]} 32. Kf2 {[%clk 0:01:23.1]} 32... h5 {[%clk 0:01:19.4]} 33. e4 {[%clk
0:01:14.1]} 33... Be6 {[%clk 0:01:19.2]} 34. Nf1 {[%clk 0:01:12.2]} 34... bxc5
{[%clk 0:01:13.4]} 35. bxc5 {[%clk 0:01:08.1]} 35... Rhc8 {[%clk 0:00:58.4]} 36.
Rxh5 {[%clk 0:01:08.2]} 36... Rxc5 {[%clk 0:00:59.4]} 37. Rxc5 {[%clk
0:01:07.5]} 37... Rxc5 {[%clk 0:01:01.3]} 38. Ne3 {[%clk 0:01:07.5]} 38... Rc3
{[%clk 0:00:59.9]} 39. Rh8 {[%clk 0:01:05.9]} 39... Rxa3 {[%clk 0:01:00.2]} 40.
h4 {[%clk 0:01:07.4]} 40... Ra1 {[%clk 0:00:53]} 41. h5 {[%clk 0:01:06.4]} 41...
a5 {[%clk 0:00:54.2]} 42. h6 {[%clk 0:01:07.2]} 42... Rh1 {[%clk 0:00:54.3]} 43.
Kg2 {[%clk 0:01:00.5]} 43... Rh5 {[%clk 0:00:54.1]} 44. g4 {[%clk 0:00:53.3]}
44... Rh4 {[%clk 0:00:54.9]} 45. Kg3 {[%clk 0:00:53.8]} 45... Rh1 {[%clk
0:00:55.8]} 46. h7 {[%clk 0:00:46.6]} 46... a4 {[%clk 0:00:49.4]} 47. Ng2 {[%clk
0:00:32.3]} 47... Rh6 {[%clk 0:00:38.5]} 48. Ra8 {[%clk 0:00:23.5]} 48... Rxh7
{[%clk 0:00:39.1]} 49. Rxa4 {[%clk 0:00:24.7]} 49... Rh1 {[%clk 0:00:38.7]} 50.
Ne3 {[%clk 0:00:25.2]} 50... Rb1 {[%clk 0:00:37.8]} 51. Ra3 {[%clk 0:00:21.4]}
51... Kf8 {[%clk 0:00:38.3]} 52. Kf3 {[%clk 0:00:21]} 52... Kg7 {[%clk
0:00:39.4]} 53. Ra7 {[%clk 0:00:18.6]} 53... Rb3 {[%clk 0:00:39.6]} 54. Kf2
{[%clk 0:00:19.2]} 54... Kg6 {[%clk 0:00:37.6]} 55. Nf5 {[%clk 0:00:12.5]} 55...
Kg5 {[%clk 0:00:33.6]} 56. Nd6 {[%clk 0:00:12.4]} 56... Kxg4 {[%clk 0:00:31.1]}
57. Nxf7 {[%clk 0:00:13.3]} 57... Bxf7 {[%clk 0:00:20.3]} 58. Rxf7 {[%clk
0:00:15.2]} 58... Kf4 {[%clk 0:00:22]} 59. Rxf6+ {[%clk 0:00:16.1]} 59... Kxe4
{[%clk 0:00:23.6]} 60. Rf8 {[%clk 0:00:14.1]} 60... Rb2+ {[%clk 0:00:24.9]} 61.
Kf1 {[%clk 0:00:13.7]} 61... Ke3 {[%clk 0:00:25.8]} 62. Rh8 {[%clk 0:00:14.2]}
62... Rb1+ {[%clk 0:00:25.1]} 63. Kg2 {[%clk 0:00:15.3]} 63... e4 {[%clk
0:00:26.4]} 64. Ra8 {[%clk 0:00:15.8]} 64... Kd3 {[%clk 0:00:23.3]} 65. Ra3+
{[%clk 0:00:15.6]} 65... Ke2 {[%clk 0:00:23.9]} 66. Ra2+ {[%clk 0:00:16.6]}
66... Ke1 {[%clk 0:00:23.4]} 67. Kg3 {[%clk 0:00:16.1]} 67... e3 {[%clk
0:00:23.1]} 68. Kf3 {[%clk 0:00:17.1]} 68... Rb3 {[%clk 0:00:23.3]} 69. Re2+
{[%clk 0:00:17.8]} 69... Kd1 {[%clk 0:00:21.7]} 70. Rxe3 {[%clk 0:00:19.1]}
70... Rxe3+ {[%clk 0:00:23.4]} 71. Kxe3 {[%clk 0:00:21]} 1/2-1/2

[Event "*** Titled Tuesday 3|2 Blitz"]
[Site "Chess.com"]
[Date "2016.05.03"]
[Round "7"]
[White "FLchessplayer"]
[Black "Schemato"]
[Result "0-1"]
[WhiteElo "2068"]
[BlackElo "2218"]
[TimeControl "180+2"]
[EndTime "12:35:07 PDT"]
[Termination "Schemato won by checkmate"]

1. e4 {[%clk 0:03:01.4]} 1... e6 {[%clk 0:02:54.8]} 2. d4 {[%clk 0:03:02.2]}
2... d5 {[%clk 0:02:55.8]} 3. Nd2 {[%clk 0:03:03.1]} 3... Be7 {[%clk 0:02:56.4]}
4. e5 {[%clk 0:03:04]} 4... b6 {[%clk 0:02:56.7]} 5. c3 {[%clk 0:03:04.8]} 5...
Qd7 {[%clk 0:02:57.1]} 6. Ngf3 {[%clk 0:02:53]} 6... h5 {[%clk 0:02:56.2]} 7.
Bd3 {[%clk 0:02:53.3]} 7... Ba6 {[%clk 0:02:55.8]} 8. Qe2 {[%clk 0:02:54.2]}
8... Bxd3 {[%clk 0:02:56.1]} 9. Qxd3 {[%clk 0:02:55.4]} 9... c5 {[%clk
0:02:57.7]} 10. h3 {[%clk 0:02:55.2]} 10... Nc6 {[%clk 0:02:55]} 11. a3 {[%clk
0:02:56.1]} 11... c4 {[%clk 0:02:54.8]} 12. Qe2 {[%clk 0:02:56.3]} 12... Na5
{[%clk 0:02:56.1]} 13. O-O {[%clk 0:02:53.8]} 13... Qa4 {[%clk 0:02:53.3]} 14.
Re1 {[%clk 0:02:52.5]} 14... Qc2 {[%clk 0:02:52.4]} 15. Nf1 {[%clk 0:02:48]}
15... Qxe2 {[%clk 0:02:51.4]} 16. Rxe2 {[%clk 0:02:49.3]} 16... Nb3 {[%clk
0:02:52.8]} 17. Rb1 {[%clk 0:02:49.6]} 17... Nh6 {[%clk 0:02:32.2]} 18. Bg5
{[%clk 0:02:49.8]} 18... Nf5 {[%clk 0:02:25.4]} 19. Bxe7 {[%clk 0:02:48.3]}
19... Kxe7 {[%clk 0:02:25.9]} 20. N1d2 {[%clk 0:02:49.3]} 20... Nxd2 {[%clk
0:02:22.2]} 21. Nxd2 {[%clk 0:02:49.7]} 21... h4 {[%clk 0:02:21.9]} 22. Kh2
{[%clk 0:02:42.7]} 22... Rab8 {[%clk 0:02:20.3]} 23. Nf3 {[%clk 0:02:41.7]}
23... b5 {[%clk 0:02:19.8]} 24. g4 {[%clk 0:02:41.5]} 24... hxg3+ {[%clk
0:02:19.8]} 25. fxg3 {[%clk 0:02:42.2]} 25... a5 {[%clk 0:02:15.3]} 26. Rf1
{[%clk 0:02:42.1]} 26... b4 {[%clk 0:02:15]} 27. axb4 {[%clk 0:02:42.2]} 27...
axb4 {[%clk 0:02:16.9]} 28. g4 {[%clk 0:02:43.6]} 28... Nh6 {[%clk 0:02:13.1]}
29. Kg3 {[%clk 0:02:42.8]} 29... bxc3 {[%clk 0:02:12]} 30. bxc3 {[%clk
0:02:43.9]} 30... Rb3 {[%clk 0:02:12.9]} 31. Re3 {[%clk 0:02:42.7]} 31... Ra8
{[%clk 0:02:09.6]} 32. Nh4 {[%clk 0:02:40.9]} 32... Raa3 {[%clk 0:02:06.3]} 33.
Rff3 {[%clk 0:02:41.4]} 33... g5 {[%clk 0:01:53.2]} 34. Ng2 {[%clk 0:02:41]}
34... Ng8 {[%clk 0:01:51.4]} 35. h4 {[%clk 0:02:41.7]} 35... gxh4+ {[%clk
0:01:50.5]} 36. Nxh4 {[%clk 0:02:38.9]} 36... Kf8 {[%clk 0:01:48.7]} 37. g5
{[%clk 0:02:39.1]} 37... Kg7 {[%clk 0:01:45]} 38. Kg4 {[%clk 0:02:40.1]} 38...
Ne7 {[%clk 0:01:45.7]} 39. Rh3 {[%clk 0:02:31.9]} 39... Nc6 {[%clk 0:01:38.2]}
40. Ref3 {[%clk 0:02:23.3]} 40... Ne7 {[%clk 0:01:12.8]} 41. Rhg3 {[%clk
0:02:17.4]} 41... Rb1 {[%clk 0:01:04.5]} 42. Kh5 {[%clk 0:02:12]} 42... Rh1
{[%clk 0:00:56.7]} 43. Rh3 {[%clk 0:02:10.5]} 43... Raa1 {[%clk 0:00:54.8]} 44.
Rxh1 {[%clk 0:02:06.5]} 44... Rxh1 {[%clk 0:00:54.6]} 45. Kg4 {[%clk 0:02:06.9]}
45... Rg1+ {[%clk 0:00:38.4]} 46. Kh5 {[%clk 0:02:07.1]} 46... Rh1 {[%clk
0:00:27.6]} 47. Kg4 {[%clk 0:02:08]} 47... Rh2 {[%clk 0:00:24.3]} 48. Rh3 {[%clk
0:02:00.9]} 48... Rc2 {[%clk 0:00:16.8]} 49. Rg3 {[%clk 0:02:00.6]} 49... Rc1
{[%clk 0:00:16.9]} 50. Kh5 {[%clk 0:02:01.2]} 50... Rh1 {[%clk 0:00:16.5]} 51.
Kg4 {[%clk 0:02:02.3]} 51... Ng6 {[%clk 0:00:17.1]} 52. Nxg6 {[%clk 0:02:02.1]}
52... Kxg6 {[%clk 0:00:18.4]} 53. Kf4 {[%clk 0:01:56.6]} 53... Rf1+ {[%clk
0:00:15.9]} 54. Ke3 {[%clk 0:01:57.5]} 54... Rf5 {[%clk 0:00:15.9]} 55. Rh3
{[%clk 0:01:58.2]} 55... Rxg5 {[%clk 0:00:14.8]} 56. Rf3 {[%clk 0:01:59.3]}
56... Rg1 {[%clk 0:00:14.1]} 57. Rf6+ {[%clk 0:01:59.3]} 57... Kg7 {[%clk
0:00:15.1]} 58. Rf3 {[%clk 0:02:00.7]} 58... Rd1 {[%clk 0:00:12.7]} 59. Ke2
{[%clk 0:02:00]} 59... Rg1 {[%clk 0:00:10.5]} 60. Kd2 {[%clk 0:01:56.6]} 60...
Rg6 {[%clk 0:00:10.2]} 61. Rh3 {[%clk 0:01:56.5]} 61... Kf8 {[%clk 0:00:09.2]}
62. Rh8+ {[%clk 0:01:56.8]} 62... Ke7 {[%clk 0:00:10.4]} 63. Rh7 {[%clk
0:01:56.5]} 63... Rg3 {[%clk 0:00:10.2]} 64. Rh2 {[%clk 0:01:56.1]} 64... Rd3+
{[%clk 0:00:09.7]} 65. Kc2 {[%clk 0:01:57.4]} 65... Rg3 {[%clk 0:00:10.6]} 66.
Kb2 {[%clk 0:01:58.3]} 66... Rg7 {[%clk 0:00:10.7]} 67. Rf2 {[%clk 0:01:59.3]}
67... Rg6 {[%clk 0:00:10.7]} 68. Ka3 {[%clk 0:01:59.6]} 68... f6 {[%clk
0:00:09.4]} 69. exf6+ {[%clk 0:01:59.6]} 69... Rxf6 {[%clk 0:00:11.3]} 70. Re2
{[%clk 0:02:00.9]} 70... Kd6 {[%clk 0:00:12.5]} 71. Kb4 {[%clk 0:02:02]} 71...
Rf8 {[%clk 0:00:13.5]} 72. Ka3 {[%clk 0:01:57.8]} 72... Rb8 {[%clk 0:00:14.8]}
73. Re3 {[%clk 0:01:55.5]} 73... Ke7 {[%clk 0:00:15.3]} 74. Ka4 {[%clk
0:01:55.8]} 74... Rb3 {[%clk 0:00:15.3]} 75. Ka5 {[%clk 0:01:54.9]} 75... Kd6
{[%clk 0:00:15.1]} 76. Ka4 {[%clk 0:01:56]} 76... Ke7 {[%clk 0:00:15.3]} 77. Ka5
{[%clk 0:01:57.3]} 77... Kf6 {[%clk 0:00:16]} 78. Ka4 {[%clk 0:01:58.5]} 78...
Kf5 {[%clk 0:00:16.8]} 79. Ka5 {[%clk 0:01:58.2]} 79... Kf6 {[%clk 0:00:13.1]}
80. Ka4 {[%clk 0:01:58.4]} 80... Rb1 {[%clk 0:00:14.1]} 81. Ka5 {[%clk
0:01:59.4]} 81... Ke7 {[%clk 0:00:15.2]} 82. Ka4 {[%clk 0:02:00]} 82... Kd6
{[%clk 0:00:16.2]} 83. Ka5 {[%clk 0:01:59.1]} 83... Rd1 {[%clk 0:00:16.2]} 84.
Rh3 {[%clk 0:01:57.4]} 84... Rd3 {[%clk 0:00:16.9]} 85. Rh8 {[%clk 0:01:57.7]}
85... Rxc3 {[%clk 0:00:16.8]} 86. Rd8+ {[%clk 0:01:57.8]} 86... Ke7 {[%clk
0:00:15.3]} 87. Rb8 {[%clk 0:01:58]} 87... Rb3 {[%clk 0:00:15.8]} 88. Rc8 {[%clk
0:01:56.3]} 88... Kf6 {[%clk 0:00:16.1]} 89. Ka4 {[%clk 0:01:56.5]} 89... Kf5
{[%clk 0:00:16.5]} 90. Re8 {[%clk 0:01:57.2]} 90... Ke4 {[%clk 0:00:17]} 91.
Rxe6+ {[%clk 0:01:58]} 91... Kxd4 {[%clk 0:00:18.1]} 92. Re1 {[%clk 0:01:58.6]}
92... Rb8 {[%clk 0:00:18.5]} 93. Rd1+ {[%clk 0:01:59]} 93... Kc5 {[%clk
0:00:19.6]} 94. Rh1 {[%clk 0:02:00]} 94... Ra8# {[%clk 0:00:19.7]} 0-1

[Event "*** Titled Tuesday 3|2 Blitz"]
[Site "Chess.com"]
[Date "2016.05.03"]
[Round "7"]
[White "Anton_Demchenko"]
[Black "GeorgMeier"]
[Result "0-1"]
[WhiteElo "2648"]
[BlackElo "2754"]
[TimeControl "180+2"]
[EndTime "12:35:50 PDT"]
[Termination "GeorgMeier won by resignation"]

1. e4 {[%clk 0:03:01.9]} 1... e6 {[%clk 0:03:01.2]} 2. d4 {[%clk 0:03:02.8]}
2... d5 {[%clk 0:03:02.3]} 3. Nd2 {[%clk 0:03:04.7]} 3... dxe4 {[%clk
0:03:03.7]} 4. Nxe4 {[%clk 0:03:06.6]} 4... Nd7 {[%clk 0:03:05.6]} 5. Nf3 {[%clk
0:03:06.3]} 5... Ngf6 {[%clk 0:03:07.5]} 6. Bd3 {[%clk 0:03:04.3]} 6... c5
{[%clk 0:03:08.7]} 7. O-O {[%clk 0:03:03.4]} 7... Nxe4 {[%clk 0:03:08.5]} 8.
Bxe4 {[%clk 0:03:05.3]} 8... Nf6 {[%clk 0:03:10.4]} 9. Bg5 {[%clk 0:03:06.2]}
9... cxd4 {[%clk 0:03:11.3]} 10. Nxd4 {[%clk 0:03:07.7]} 10... Be7 {[%clk
0:03:12.7]} 11. Bf3 {[%clk 0:03:08.7]} 11... O-O {[%clk 0:03:14.4]} 12. Re1
{[%clk 0:03:06.1]} 12... Qb6 {[%clk 0:03:13.4]} 13. Nb3 {[%clk 0:02:24.9]} 13...
Rd8 {[%clk 0:03:13.4]} 14. Qe2 {[%clk 0:02:24.6]} 14... a5 {[%clk 0:03:14.8]}
15. a4 {[%clk 0:02:21.2]} 15... Bd7 {[%clk 0:03:15]} 16. Qe3 {[%clk 0:02:13.2]}
16... Qb4 {[%clk 0:02:46.8]} 17. Bf4 {[%clk 0:01:30.3]} 17... Bc6 {[%clk
0:02:46.1]} 18. Bxc6 {[%clk 0:01:24.5]} 18... bxc6 {[%clk 0:02:47.2]} 19. Be5
{[%clk 0:01:23.8]} 19... Ng4 {[%clk 0:02:34.3]} 20. Qf3 {[%clk 0:01:08.9]} 20...
Nxe5 {[%clk 0:02:21.4]} 21. Rxe5 {[%clk 0:01:10.4]} 21... Bf6 {[%clk 0:02:05.8]}
22. Re4 {[%clk 0:01:04.5]} 22... Qb6 {[%clk 0:02:06.7]} 23. Rc4 {[%clk
0:01:03.8]} 23... Rd5 {[%clk 0:02:07.4]} 24. Rb1 {[%clk 0:01:02.9]} 24... Rad8
{[%clk 0:02:00.8]} 25. g3 {[%clk 0:01:04.1]} 25... R8d6 {[%clk 0:01:47.3]} 26.
Qe2 {[%clk 0:00:59.2]} 26... h5 {[%clk 0:01:31.9]} 27. Kg2 {[%clk 0:00:53]}
27... g6 {[%clk 0:01:19.9]} 28. Re4 {[%clk 0:00:48.5]} 28... Qd8 {[%clk
0:01:15.9]} 29. Rc4 {[%clk 0:00:44.9]} 29... Re5 {[%clk 0:00:50.2]} 30. Qf3
{[%clk 0:00:38.9]} 30... Rf5 {[%clk 0:00:51]} 31. Qe2 {[%clk 0:00:37.2]} 31...
Qb6 {[%clk 0:00:51.6]} 32. Re4 {[%clk 0:00:32.2]} 32... Kg7 {[%clk 0:00:50.4]}
33. Rc4 {[%clk 0:00:31.6]} 33... Rd8 {[%clk 0:00:43.8]} 34. Re4 {[%clk
0:00:32.5]} 34... Rfd5 {[%clk 0:00:42.6]} 35. Rc4 {[%clk 0:00:33]} 35... Re5
{[%clk 0:00:43.2]} 36. Re4 {[%clk 0:00:32.4]} 36... Rdd5 {[%clk 0:00:42.1]} 37.
Rxe5 {[%clk 0:00:27.6]} 37... Rxe5 {[%clk 0:00:38.7]} 38. Qc4 {[%clk 0:00:26.3]}
38... Rd5 {[%clk 0:00:38.2]} 39. h4 {[%clk 0:00:21.5]} 39... Qc7 {[%clk
0:00:39.3]} 40. Qe4 {[%clk 0:00:19.4]} 40... Qd6 {[%clk 0:00:39.9]} 41. Qe2
{[%clk 0:00:18]} 41... Bd8 {[%clk 0:00:40.2]} 42. Rf1 {[%clk 0:00:08.6]} 42...
Bf6 {[%clk 0:00:38.2]} 43. Rb1 {[%clk 0:00:08.9]} 43... Bd8 {[%clk 0:00:39.4]}
44. Re1 {[%clk 0:00:09]} 44... Bb6 {[%clk 0:00:41]} 45. Qc4 {[%clk 0:00:07.9]}
45... Rf5 {[%clk 0:00:36.7]} 46. Re2 {[%clk 0:00:07]} 46... Kf8 {[%clk
0:00:30.3]} 47. Qe4 {[%clk 0:00:06.9]} 47... Qd5 {[%clk 0:00:24.8]} 48. Nd2
{[%clk 0:00:08.1]} 48... Ke7 {[%clk 0:00:23.5]} 49. Nf3 {[%clk 0:00:08.1]} 49...
Qxe4 {[%clk 0:00:20.3]} 50. Rxe4 {[%clk 0:00:08.9]} 50... Bc7 {[%clk 0:00:18.4]}
51. Rc4 {[%clk 0:00:09.6]} 51... Kd7 {[%clk 0:00:19.4]} 52. Nd4 {[%clk
0:00:09.2]} 52... Rd5 {[%clk 0:00:17.7]} 53. Nxc6 {[%clk 0:00:08.2]} 53... e5
{[%clk 0:00:18.5]} 54. Na7 {[%clk 0:00:08.5]} 54... Bb6 {[%clk 0:00:17.9]} 55.
Nb5 {[%clk 0:00:04.8]} 55... Rd2 {[%clk 0:00:18.5]} 56. Kh3 {[%clk 0:00:04.2]}
56... Rxf2 {[%clk 0:00:15.8]} 57. Nc3 {[%clk 0:00:05.1]} 57... f5 {[%clk
0:00:13.1]} 58. Nd5 {[%clk 0:00:05.3]} 58... Bd4 {[%clk 0:00:13.7]} 59. c3
{[%clk 0:00:06.4]} 59... Kd6 {[%clk 0:00:12.5]} 60. cxd4 {[%clk 0:00:04.1]}
60... Kxd5 {[%clk 0:00:13.8]} 61. Rc5+ {[%clk 0:00:05.1]} 61... Kxd4 {[%clk
0:00:15.5]} 62. Rxa5 {[%clk 0:00:06.5]} 62... Rxb2 {[%clk 0:00:15.7]} 63. Ra6
{[%clk 0:00:07.9]} 63... e4 {[%clk 0:00:16.3]} 64. Rxg6 {[%clk 0:00:09]} 64...
e3 {[%clk 0:00:16]} 65. Re6 {[%clk 0:00:10.3]} 65... Ra2 {[%clk 0:00:14.5]} 66.
Rf6 {[%clk 0:00:05.9]} 66... e2 {[%clk 0:00:14.9]} 67. Re6 {[%clk 0:00:07]}
67... Kd3 {[%clk 0:00:16.3]} 68. a5 {[%clk 0:00:06.7]} 68... Rxa5 {[%clk
0:00:12.2]} 69. Kg2 {[%clk 0:00:07.4]} 69... Ra1 {[%clk 0:00:13.1]} 70. Rd6+
{[%clk 0:00:06.6]} 70... Kc2 {[%clk 0:00:12.7]} 71. Rc6+ {[%clk 0:00:07.8]}
71... Kb3 {[%clk 0:00:14]} 72. Rb6+ {[%clk 0:00:09.1]} 72... Kc4 {[%clk
0:00:15.4]} 73. Rc6+ {[%clk 0:00:10.3]} 73... Kd5 {[%clk 0:00:16.4]} 0-1

[Event "*** Titled Tuesday 3|2 Blitz"]
[Site "Chess.com"]
[Date "2016.05.03"]
[Round "8"]
[White "FLchessplayer"]
[Black "Badouuu"]
[Result "0-1"]
[WhiteElo "2058"]
[BlackElo "2003"]
[TimeControl "180+2"]
[EndTime "12:40:49 PDT"]
[Termination "Badouuu won by checkmate"]

1. e4 {[%clk 0:03:01.9]} 1... c5 {[%clk 0:03:01.2]} 2. Nf3 {[%clk 0:03:02.9]}
2... Nc6 {[%clk 0:03:02.4]} 3. c3 {[%clk 0:03:03.7]} 3... g6 {[%clk 0:03:02.5]}
4. d4 {[%clk 0:03:04.1]} 4... cxd4 {[%clk 0:03:00.8]} 5. cxd4 {[%clk 0:03:05.4]}
5... Bg7 {[%clk 0:03:02.7]} 6. h3 {[%clk 0:03:04.6]} 6... d6 {[%clk 0:03:03.9]}
7. Nc3 {[%clk 0:03:05.1]} 7... Nf6 {[%clk 0:03:05]} 8. Be3 {[%clk 0:03:05.5]}
8... O-O {[%clk 0:03:06.3]} 9. Qd2 {[%clk 0:03:06.7]} 9... Re8 {[%clk
0:02:45.8]} 10. Rc1 {[%clk 0:03:07.3]} 10... Qa5 {[%clk 0:02:44.9]} 11. Bd3
{[%clk 0:03:06.1]} 11... Qh5 {[%clk 0:02:42.3]} 12. Be2 {[%clk 0:03:04.5]} 12...
Qa5 {[%clk 0:02:41.8]} 13. a3 {[%clk 0:03:03.6]} 13... e5 {[%clk 0:02:32.8]} 14.
d5 {[%clk 0:03:03.7]} 14... Ne7 {[%clk 0:02:32.3]} 15. Bd3 {[%clk 0:02:57.3]}
15... a6 {[%clk 0:02:32.6]} 16. Ng1 {[%clk 0:02:52.1]} 16... Bd7 {[%clk
0:02:32]} 17. f3 {[%clk 0:02:52.7]} 17... Rac8 {[%clk 0:02:26.2]} 18. Nge2
{[%clk 0:02:53.5]} 18... b5 {[%clk 0:02:17.5]} 19. Kf2 {[%clk 0:02:52.2]} 19...
Qd8 {[%clk 0:02:14.4]} 20. Rhd1 {[%clk 0:02:50.6]} 20... Rf8 {[%clk 0:02:12.3]}
21. Kg1 {[%clk 0:02:50.5]} 21... Nh5 {[%clk 0:02:13.3]} 22. Kh2 {[%clk
0:02:50.9]} 22... f5 {[%clk 0:02:14]} 23. Bh6 {[%clk 0:02:45.6]} 23... f4 {[%clk
0:02:14.1]} 24. Bxg7 {[%clk 0:02:46.7]} 24... Kxg7 {[%clk 0:02:16]} 25. Bc2
{[%clk 0:02:47.2]} 25... g5 {[%clk 0:02:16.3]} 26. Bb3 {[%clk 0:02:47.1]} 26...
Ng6 {[%clk 0:02:15.4]} 27. Na2 {[%clk 0:02:45.9]} 27... Nh4 {[%clk 0:02:13.4]}
28. Rxc8 {[%clk 0:02:45.6]} 28... Qxc8 {[%clk 0:02:14.4]} 29. Rc1 {[%clk
0:02:46.8]} 29... Qe8 {[%clk 0:02:14.9]} 30. Rc7 {[%clk 0:02:45]} 30... Rf7
{[%clk 0:02:13.9]} 31. Qb4 {[%clk 0:02:45.3]} 31... Qe7 {[%clk 0:02:08.7]} 32.
Qa5 {[%clk 0:02:41.1]} 32... Qf6 {[%clk 0:02:07.3]} 33. Qxa6 {[%clk 0:02:37.9]}
33... g4 {[%clk 0:02:01.5]} 34. hxg4 {[%clk 0:02:38]} 34... Nxf3+ {[%clk
0:02:00.6]} 35. gxf3 {[%clk 0:02:36.4]} 35... Qh4+ {[%clk 0:02:01.7]} 36. Kg2
{[%clk 0:02:37.4]} 36... Ng3 {[%clk 0:01:59.5]} 37. Nac3 {[%clk 0:02:38]} 37...
Qh1+ {[%clk 0:02:00.1]} 38. Kf2 {[%clk 0:02:36.6]} 38... Qf1# {[%clk 0:02:02]}
0-1

[Event "*** Titled Tuesday 3|2 Blitz"]
[Site "Chess.com"]
[Date "2016.05.03"]
[Round "8"]
[White "NaziPaiki"]
[Black "Colombiano07"]
[Result "1-0"]
[WhiteElo "2609"]
[BlackElo "2275"]
[TimeControl "180+2"]
[EndTime "12:41:30 PDT"]
[Termination "NaziPaiki won by resignation"]

1. e4 {[%clk 0:03:01.9]} 1... c5 {[%clk 0:03:00.6]} 2. Nf3 {[%clk 0:03:02.7]}
2... Nc6 {[%clk 0:03:01.2]} 3. d4 {[%clk 0:03:03]} 3... cxd4 {[%clk 0:03:01.5]}
4. Nxd4 {[%clk 0:03:04.7]} 4... e5 {[%clk 0:03:03.1]} 5. Nb5 {[%clk 0:03:05.2]}
5... d6 {[%clk 0:03:04]} 6. N1c3 {[%clk 0:03:03.1]} 6... a6 {[%clk 0:03:04.3]}
7. Na3 {[%clk 0:03:03.8]} 7... b5 {[%clk 0:02:59.8]} 8. Nd5 {[%clk 0:03:04.9]}
8... Nf6 {[%clk 0:03:00.1]} 9. Bg5 {[%clk 0:03:02.5]} 9... Qa5+ {[%clk
0:02:59.5]} 10. Bd2 {[%clk 0:02:59]} 10... Qd8 {[%clk 0:02:59.8]} 11. Nxf6+
{[%clk 0:02:57.9]} 11... Qxf6 {[%clk 0:02:56.8]} 12. c4 {[%clk 0:02:59.1]} 12...
b4 {[%clk 0:02:45.8]} 13. Nc2 {[%clk 0:02:57.3]} 13... Rb8 {[%clk 0:02:40.7]}
14. Ne3 {[%clk 0:02:56.1]} 14... Qd8 {[%clk 0:02:30.1]} 15. Nd5 {[%clk
0:02:53.5]} 15... a5 {[%clk 0:02:24.1]} 16. Bd3 {[%clk 0:02:51.3]} 16... Be7
{[%clk 0:02:24.3]} 17. O-O {[%clk 0:02:51.4]} 17... O-O {[%clk 0:02:24.9]} 18.
Be3 {[%clk 0:02:50]} 18... Bg5 {[%clk 0:02:22.8]} 19. Rc1 {[%clk 0:02:50.9]}
19... Bxe3 {[%clk 0:02:16.4]} 20. fxe3 {[%clk 0:02:48.8]} 20... Be6 {[%clk
0:02:17.1]} 21. c5 {[%clk 0:02:46.6]} 21... Ne7 {[%clk 0:01:45.2]} 22. c6 {[%clk
0:02:42.7]} 22... Rc8 {[%clk 0:01:29.5]} 23. c7 {[%clk 0:02:40.8]} 23... Qe8
{[%clk 0:01:27]} 24. Bb5 {[%clk 0:02:41.4]} 24... Nxd5 {[%clk 0:01:18.6]} 25.
Bxe8 {[%clk 0:02:41.4]} 25... Nxe3 {[%clk 0:01:19.5]} 26. Qd3 {[%clk 0:02:39.4]}
26... Nxf1 {[%clk 0:01:20.2]} 27. Bb5 {[%clk 0:02:38.4]} 27... f5 {[%clk
0:00:47.6]} 28. Rxf1 {[%clk 0:02:34.4]} 28... Rxc7 {[%clk 0:00:45.9]} 29. Qxd6
{[%clk 0:02:34.7]} 29... Rb7 {[%clk 0:00:47]} 30. Qxe6+ {[%clk 0:02:33.7]} 1-0

[Event "*** Titled Tuesday 3|2 Blitz"]
[Site "Chess.com"]
[Date "2016.05.03"]
[Round "8"]
[White "saraswathii"]
[Black "sandropozo"]
[Result "0-1"]
[WhiteElo "1968"]
[BlackElo "2271"]
[TimeControl "180+2"]
[EndTime "12:42:04 PDT"]
[Termination "sandropozo won by resignation"]

1. e4 {[%clk 0:03:01.9]} 1... e6 {[%clk 0:02:52]} 2. d3 {[%clk 0:03:02.8]} 2...
d5 {[%clk 0:02:50.7]} 3. Nd2 {[%clk 0:03:02.9]} 3... Nc6 {[%clk 0:02:52.2]} 4.
Ngf3 {[%clk 0:03:02.6]} 4... Nf6 {[%clk 0:02:48.6]} 5. e5 {[%clk 0:03:02.2]}
5... Nd7 {[%clk 0:02:49.3]} 6. d4 {[%clk 0:03:01.8]} 6... f6 {[%clk 0:02:50.8]}
7. exf6 {[%clk 0:03:01.3]} 7... Qxf6 {[%clk 0:02:50.9]} 8. c3 {[%clk 0:03:01.2]}
8... e5 {[%clk 0:02:51.9]} 9. dxe5 {[%clk 0:03:00.7]} 9... Ndxe5 {[%clk
0:02:53.4]} 10. Be2 {[%clk 0:03:00.8]} 10... Bd6 {[%clk 0:02:52.6]} 11. Nxe5
{[%clk 0:02:59.2]} 11... Nxe5 {[%clk 0:02:52.3]} 12. Nf3 {[%clk 0:02:51.4]}
12... c6 {[%clk 0:02:50.4]} 13. O-O {[%clk 0:02:50.4]} 13... O-O {[%clk
0:02:49.2]} 14. Nxe5 {[%clk 0:02:39.6]} 14... Qxe5 {[%clk 0:02:42.5]} 15. g3
{[%clk 0:02:38.3]} 15... Bh3 {[%clk 0:02:41.3]} 16. Re1 {[%clk 0:02:38.3]} 16...
Rxf2 {[%clk 0:02:04.6]} 17. Bf3 {[%clk 0:02:16.6]} 17... Bc5 {[%clk 0:01:38.6]}
18. Kh1 {[%clk 0:01:38.5]} 18... Qh5 {[%clk 0:01:10.5]} 19. Bxh5 {[%clk
0:00:56.4]} 19... Bg2+ {[%clk 0:01:09.1]} 20. Kg1 {[%clk 0:00:54.3]} 20... Rd2+
{[%clk 0:01:08.2]} 0-1